fUST/lending_fUST_20240922
["ID","MTS","AMOUNT","RATE_DAILY","PERIOD"]
[338873154,1726971044318,-1420.43588476,0.0002649,4]
[338873155,1726971044327,-38384.58685245,0.000265,14]
[338873156,1726971044339,-16768.77314755,0.000265,14]
[338873157,1726971044349,-1223.52,0.000265,7]
[338873158,1726971044358,-151.0,0.000265,7]
[338873159,1726971044367,-151.0,0.000265,7]
[338873160,1726971044377,-152.518231,0.000265,7]
[338873161,1726971044386,-151.0,0.000265,7]
[338873162,1726971044395,-151.0,0.000265,7]
[338873163,1726971044405,-229.16552493,0.00026522,2]
[338873164,1726971044414,-184.89774299,0.00026544,2]
[338873165,1726971044424,-2840.87176952,0.0002659,4]
[338873166,1726971044433,-5681.74353904,0.0002659,4]
[338873167,1726971044443,-810.0,0.000266,2]
[338873168,1726971044453,-27786.5,0.000266,14]
[338873169,1726971044462,-119081.04,0.000266,14]
[338873170,1726971044471,-3249.37,0.000266,14]
[338873171,1726971044480,-151.0,0.000266,7]
[338873172,1726971044489,-151.0,0.000266,7]
[338873173,1726971044498,-151.0,0.000266,7]
[338873174,1726971044507,-283.542492,0.000266,7]
[338873175,1726971044517,-151.0,0.000266,7]
[338873176,1726971044526,-151.0,0.000266,7]
[338873177,1726971044535,-151.0,0.000266,7]
[338873178,1726971044544,-151.0,0.000266,7]
[338873179,1726971044553,-151.0,0.000266,7]
[338873180,1726971044563,-151.0,0.000266,7]
[338873181,1726971044572,-479.03509,0.000266,7]
[338873182,1726971044586,-479.03509,0.000266,7]
[338873183,1726971044595,-479.03509,0.000266,7]
[338873184,1726971044604,-479.03509,0.000266,7]
[338873185,1726971044616,-151.0,0.000266,7]
[338873186,1726971044625,-151.0,0.000266,7]
[338873187,1726971044634,-151.0,0.000266,7]
[338873188,1726971044644,-151.0,0.000266,7]
[338873189,1726971044654,-300.0,0.00027,2]
[338873190,1726971044663,-300.0,0.00027,2]
[338873191,1726971044673,-383.01744,0.00027,120]
[338873192,1726971044682,-1000.0,0.00027397,2]
[338873193,1726971044692,-1000.0,0.00027397,2]
[338873194,1726971044701,-1000.0,0.00027397,2]
[338873195,1726971044710,-1000.0,0.00027397,2]
[338873196,1726971044719,-1000.0,0.00027397,2]
[338873197,1726971044729,-1000.0,0.00027397,2]
[338873198,1726971044738,-1000.0,0.00027397,2]
[338873199,1726971044748,-1000.0,0.00027397,2]
[338873200,1726971044757,-1000.0,0.00027397,2]
[338873201,1726971044766,-1000.0,0.00027397,2]
[338873202,1726971044776,-1000.0,0.00027397,2]
[338873203,1726971044785,-1000.0,0.00027397,2]
[338873204,1726971044794,-1000.0,0.00027397,2]
[338873205,1726971044803,-1000.0,0.00027397,2]
[338873206,1726971044813,-1000.0,0.00027397,2]
[338873207,1726971044822,-1000.0,0.00027397,2]
[338873208,1726971044831,-1000.0,0.00027397,2]
[338873209,1726971044840,-1000.0,0.00027397,2]
[338873210,1726971044849,-1000.0,0.00027397,2]
[338873211,1726971044862,-1000.0,0.00027397,2]
[338873212,1726971044871,-546.86625014,0.00027397,2]
[338873213,1726971044880,-150.0,0.00027397,5]
[338873214,1726971044889,-151.0,0.00027427,4]
[338873215,1726971044899,-300.0,0.00028,2]
[338873216,1726971044909,-300.0,0.00028,2]
[338873217,1726971044919,-500.0,0.00028,120]
[338873218,1726971044928,-821.97768711,0.00028,2]
[338873219,1726971044937,-2225.33226078,0.00028,30]
[338873220,1726971044946,-229.16552493,0.00028444,2]
[338873221,1726971044957,-157.9970354,0.0002846,2]
[338873222,1726971044966,-153.0,0.0002846,2]
[338873223,1726971044975,-823.0365065,0.0002846,2]
[338873224,1726971044984,-153.0,0.0002846,2]
[338873225,1726971044993,-153.0,0.0002846,2]
[338873226,1726971045002,-151.0,0.0002882,5]
[338873227,1726971045012,-184.89774299,0.000289,2]
[338873228,1726971045021,-1420.43588476,0.0002899,4]
[338873229,1726971045030,-730.4416,0.00028993,30]
[338873230,1726971045039,-300.0,0.00029,2]
[338873231,1726971045048,-300.0,0.00029,2]
[338873232,1726971045057,-50000.0,0.00029,30]
[338873233,1726971045066,-151.0,0.00029,7]
[338873234,1726971045075,-1216.0,0.00029028,2]
[338873235,1726971045084,-1420.43588476,0.0002919,4]
[338873236,1726971045093,-55153.36,0.000292,14]
[338873237,1726971045102,-1223.52,0.000292,7]
[338873238,1726971045113,-154.314086,0.000292,7]
[338873239,1726971045122,-151.0,0.000292,7]
[338873240,1726971045130,-151.0,0.000292,7]
[338873241,1726971045140,-479.03509,0.000292,7]
[338873242,1726971045149,-479.03509,0.000292,7]
[338873243,1726971045158,-151.0,0.000292,7]
[338873244,1726971045167,-151.0,0.000292,7]
[338873245,1726971045176,-153.0,0.00029282,2]
[338873246,1726971045186,-153.0,0.00029282,2]
[338873247,1726971045194,-153.0,0.00029282,2]
[338873248,1726971045204,-153.0,0.00029282,2]
[338873249,1726971045213,-153.0,0.00029282,2]
[338873250,1726971045222,-153.0,0.00029282,2]
[338873251,1726971045231,-153.8303992,0.00029282,2]
[338873252,1726971045240,-153.0,0.00029282,2]
[338873253,1726971045249,-153.0,0.00029282,2]
[338873254,1726971045259,-153.0,0.00029282,2]
[338873255,1726971045272,-153.0,0.00029282,2]
[338873256,1726971045281,-153.0,0.00029282,2]
[338873257,1726971045290,-524.0,0.00029327,2]
[338873258,1726971045299,-150.0,0.00029327,2]
[338873259,1726971045308,-810.0,0.000294,120]
[338873260,1726971045317,-306.0,0.00029568,2]
[338873261,1726971045326,-2840.87176952,0.0002979,4]
[338873262,1726971045335,-27786.5,0.000298,14]
[338873263,1726971045344,-4253.30045545,0.000298,14]
[338873264,1726971045560,-942.69742349,0.000298,14]
[338873316,1726971046808,-2077.367111,0.000298,14]
[338873364,1726971047968,-37277.659772,0.000298,14]
[338873366,1726972035137,-276.0,0.00017216,2]
[338873367,1726972035159,-300.0,0.00017216,2]
[338873368,1726972035182,-21017.6569842,0.00017217,2]
[338873369,1726972035203,-150.0,0.000175,2]
[338873370,1726972035225,-500.0,0.000182,2]
[338873371,1726972035247,-375.0,0.000188,2]
[338873372,1726972035269,-275.21334,0.00019178,2]
[338873373,1726972035289,-2731.329442,0.0002085,2]
[338873374,1726972035310,-150.0,0.00021,2]
[338873375,1726972035486,-500.93030257,0.000212,2]
[338873376,1726972035508,-150.0,0.00021584,2]
[338873377,1726972035530,-524.0,0.00021584,2]
[338873378,1726972035552,-1233.904,0.00021584,2]
[338873379,1726972035573,-15015.645,0.00021584,2]
[338873380,1726972035595,-629.50482561,0.00021773,2]
[338873381,1726972035614,-500.0,0.00021873,2]
[338873382,1726972035634,-509.00813234,0.00021917,2]
[338873383,1726972035656,-500.0,0.00021917,2]
[338873384,1726972035684,-503.18922232,0.00021917,2]
[338873385,1726972035706,-176.17443834,0.00021917,2]
[338873386,1726972035729,-166.666666,0.00021918,2]
[338873387,1726972035750,-500.0,0.00022191,2]
[338873388,1726972035779,-166.666666,0.00022431,2]
[338873389,1726972035801,-500.0,0.00022465,2]
[338873390,1726972035821,-245.108,0.00022559,2]
[338873391,1726972035845,-282.378305,0.00022597,2]
[338873392,1726972035866,-500.0,0.00022739,2]
[338873393,1726972035886,-166.666666,0.00022944,2]
[338873394,1726972035907,-152.33630927,0.00022971,2]
[338873395,1726972035932,-500.0,0.00023013,2]
[338873396,1726972035952,-1000.0,0.00023243,2]
[338873397,1726972035972,-166.666666,0.00023456,2]
[338873398,1726972035992,-320.0,0.000238,2]
[338873399,1726972036017,-166.666666,0.00023969,2]
[338873400,1726972036039,-320.0,0.00024,2]
[338873401,1726972036060,-302.45563732,0.00024,2]
[338873402,1726972036083,-320.0,0.000242,2]
[338873403,1726972036104,-302.45563732,0.0002424,2]
[338873404,1726972036125,-320.0,0.000244,2]
[338873405,1726972036149,-302.45563732,0.0002448,2]
[338873406,1726972036171,-166.666666,0.00024482,2]
[338873407,1726972036193,-150.0,0.00024584,2]
[338873408,1726972036215,-524.0,0.00024584,2]
[338873409,1726972036237,-1216.0,0.00024584,2]
[338873410,1726972036260,-320.0,0.000246,2]
[338873411,1726972036283,-629.50482558,0.00024648,2]
[338873412,1726972036305,-200.0,0.00024658,15]
[338873413,1726972036326,-380.0,0.00024658,2]
[338873414,1726972036348,-302.45563732,0.0002472,2]
[338873415,1726972036369,-320.0,0.000248,2]
[338873416,1726972036388,-302.45563732,0.0002496,2]
[338873417,1726972036411,-200.0,0.00025,2]
[338873418,1726972036431,-453.68345598,0.000252,4]
[338873419,1726972036452,-1500.0,0.00025246,2]
[338873420,1726972036473,-320.0,0.000253,2]
[338873421,1726972036495,-432.55,0.000253,7]
[338873422,1726972036517,-453.68345598,0.0002544,4]
[338873423,1726972036541,-453.68345598,0.0002568,4]
[338873424,1726972036562,-320.0,0.000258,2]
[338873425,1726972036583,-453.68345598,0.0002592,4]
[338873426,1726972036604,-244.5,0.00026,2]
[338873427,1726972036625,-244.5,0.00026,2]
[338873428,1726972036646,-453.68345597,0.0002616,4]
[338873429,1726972036672,-320.0,0.000263,2]
[338873430,1726972036693,-660.0,0.00026301,2]
[338873431,1726972036716,-275.21334,0.00026388,2]
[338873432,1726972036737,-320.0,0.000268,2]
[338873433,1726972036758,-300.0,0.00027,2]
[338873434,1726972036779,-300.0,0.00027,2]
[338873435,1726972036799,-383.46626,0.00027,120]
[338873436,1726972036820,-320.0,0.000273,2]
[338873437,1726972036843,-150.0,0.00027397,5]
[338873438,1726972036864,-151.0,0.00027464,4]
[338873439,1726972036886,-629.50482558,0.00027524,2]
[338873440,1726972036907,-150.0,0.00027584,2]
[338873441,1726972036930,-524.0,0.00027584,2]
[338873442,1726972036952,-1216.0,0.00027584,2]
[338873443,1726972036972,-1469.92445442,0.00027587,5]
[338873444,1726972036992,-320.0,0.000278,2]
[338873445,1726972037017,-300.0,0.00028,2]
[338873446,1726972037038,-300.0,0.00028,2]
[338873447,1726972037060,-320.0,0.000283,120]
[338873448,1726972037081,-850.326389,0.0002831,2]
[338873449,1726972037104,-151.0,0.00028848,5]
[338873450,1726972037125,-730.4416,0.00028969,30]
[338873451,1726972037145,-300.0,0.00029,2]
[338873452,1726972037168,-100.33907528,0.00029,2]
[338873453,1726972042136,-199.66092472,0.00029,2]
[338873454,1726972042157,-6280.78896416,0.0002923,2]
[338873455,1726972042189,-272.92379484,0.00029567,2]
[338873456,1726972042217,-1985.51293467,0.00029567,2]
[338873457,1726972042239,-184.89774299,0.0002979,2]
[338873458,1726972042261,-1093.22731512,0.0002986,3]
[338873459,1726972042283,-94484.8,0.0002993,3]
[338873460,1726972042305,-113381.75,0.0002994,3]
[338873461,1726972042329,-35141.8717134,0.0002995,4]
[338873462,1726972042352,-76092.7853343,0.0002995,4]
[338873463,1726972042374,-152.387808,0.0002996,7]
[338873464,1726972042396,-151.0,0.0002996,7]
[338873465,1726972042430,-151.0,0.0002996,7]
[338873466,1726972042453,-151.0,0.0002996,7]
[338873467,1726972042477,-35141.8717134,0.0002996,4]
[338873468,1726972042500,-76092.7853343,0.0002996,4]
[338873469,1726972042525,-35141.8717134,0.0002997,4]
[338873470,1726972042550,-76092.7853343,0.0002997,4]
[338873471,1726972042571,-500.0,0.00029973,5]
[338873472,1726972042595,-500.0,0.00029979,2]
[338873473,1726972042616,-500.0,0.00029979,2]
[338873474,1726972042640,-500.0,0.00029979,2]
[338873475,1726972042662,-481.99855285,0.00029979,2]
[338873476,1726972042684,-414.66944501,0.00029979,2]
[338873477,1726972042708,-500.0,0.00029979,2]
[338873478,1726972042729,-500.0,0.00029979,2]
[338873479,1726972042753,-252.12499179,0.00029979,2]
[338873480,1726972042774,-500.0,0.00029979,2]
[338873481,1726972042799,-500.0,0.00029979,2]
[338873482,1726972042823,-500.0,0.00029979,2]
[338873483,1726972042846,-500.0,0.00029979,2]
[338873484,1726972042868,-500.0,0.00029979,2]
[338873485,1726972042891,-500.0,0.00029979,2]
[338873486,1726972042921,-500.0,0.00029979,2]
[338873487,1726972042946,-500.0,0.00029979,2]
[338873488,1726972042970,-500.0,0.00029979,2]
[338873489,1726972042994,-500.0,0.00029979,2]
[338873490,1726972043021,-17570.9358567,0.0002998,4]
[338873491,1726972043045,-18511.98617405,0.0002998,4]
[338873551,1726972232781,-276.68111885,0.000167,2]
[338873552,1726972233527,-1198.89178192,0.000167,2]
[338873553,1726972233536,-150.0,0.000176,2]
[338873554,1726972233546,-187.46242352,0.000191,12]
[338873555,1726972233556,-151.98523639,0.0002,2]
[338873556,1726972233566,-1591.0624963,0.000218,2]
[338873557,1726972233575,-161.118825,0.00024328,2]
[338873558,1726972233585,-200.0,0.00025,2]
[338873559,1726972233595,-257.78,0.000254,7]
[338873560,1726972233605,-244.5,0.00026,2]
[338873561,1726972233614,-300.0,0.00027,2]
[338873562,1726972233624,-411.0,0.00028,2]
[338873563,1726972233633,-300.0,0.00028,2]
[338873564,1726972233643,-393.44051604,0.000289,2]
[338873565,1726972233652,-2597.24144683,0.00029,30]
[338873575,1726972239366,-47488.98039716,0.00029,30]
[338873576,1726972239376,-300.0,0.00029,2]
[338873577,1726972239577,-300.0,0.00029,2]
[338873578,1726972239589,-838.98014188,0.000298,2]
[338873579,1726972239598,-907.27635638,0.0002983,10]
[338873580,1726972239607,-992.75646734,0.00029978,2]
[338873581,1726972239616,-151.0,0.0002998,7]
[338873582,1726972239625,-151.0,0.0002998,7]
[338873583,1726972239634,-151.0,0.0002998,7]
[338873584,1726972239644,-169.816527,0.0002998,7]
[338873585,1726972239652,-3200.0,0.0002998,2]
[338873586,1726972239662,-300.0,0.0003,2]
[338873587,1726972239671,-300.0,0.0003,2]
[338873588,1726972239680,-300.0,0.0003,30]
[338873589,1726972239689,-479.01,0.0003,2]
[338873590,1726972239698,-500.0,0.0003,120]
[338873591,1726972239707,-5000.0,0.0003,20]
[338873592,1726972239715,-1209.7018085,0.0003,3]
[338873593,1726972239724,-245.0,0.0003,2]
[338873594,1726972239733,-448.4596514,0.00030116,2]
[338873595,1726972239742,-153.257408,0.00030116,2]
[338873596,1726972239751,-420.6144444,0.00030116,2]
[338873597,1726972239760,-154.5341713,0.00030116,2]
[338873598,1726972239769,-153.0,0.00030116,2]
[338873599,1726972239778,-153.0,0.00030116,2]
[338873600,1726972239787,-153.0,0.00030116,2]
[338873601,1726972239796,-153.0,0.00030116,2]
[338873602,1726972239805,-153.0,0.00030116,2]
[338873603,1726972239814,-153.0,0.00030116,2]
[338873604,1726972239823,-153.8303992,0.00030116,2]
[338873605,1726972239832,-153.0,0.00030116,2]
[338873606,1726972239841,-153.0,0.00030116,2]
[338873607,1726972239850,-153.0,0.00030116,2]
[338873608,1726972239860,-208.8866586,0.00030116,2]
[338873609,1726972239869,-479.41064084,0.00030128,12]
[338873614,1726972240590,-579.0784416,0.00030128,12]
[338873615,1726972240600,-400.0,0.00030137,60]
[338873616,1726972240608,-186.2754156,0.00030164,2]
[338873617,1726972240618,-151.0,0.00030232,6]
[338873618,1726972240627,-1058.48908244,0.00030427,12]
[338873619,1726972240636,-153.0,0.0003053,2]
[338873620,1726972240645,-153.0,0.0003053,2]
[338873621,1726972240654,-153.0,0.0003053,2]
[338873622,1726972240663,-151.802188,0.00030574,7]
[338873623,1726972240672,-524.0,0.00030584,2]
[338873624,1726972240681,-1216.0,0.00030584,2]
[338873625,1726972240690,-529.98120652,0.00030725,12]
[338873626,1726972240699,-150.0,0.00030738,5]
[338873627,1726972240707,-393.44051598,0.00030757,2]
[338873628,1726972240717,-320.0,0.000308,120]
[338873629,1726972240726,-300.0,0.00031,4]
[338873631,1726972240735,-300.0,0.00031,4]
[338873632,1726972240745,-184.89774299,0.00031359,2]
[338873634,1726972240755,-54678.7,0.00031429,3]
[338873635,1726972240765,-50406.23959779,0.00031439,3]
[338873648,1726972243843,-153.9401816,0.0003053,2]
[338873649,1726972243853,-15208.20040221,0.00031439,3]
[338873651,1726972243862,-78737.33,0.00031449,3]
[338873652,1726972243871,-22842.2166137,0.00031459,4]
[338873653,1726972243881,-2853.47945002,0.00031459,4]
[338873654,1726972243890,-11421.1083069,0.00031469,4]
[338873655,1726972243900,-1426.73972501,0.00031469,4]
[338873656,1726972243910,-153.0,0.00031489,2]
[338873657,1726972243919,-306.0,0.00031489,2]
[338873658,1726972243930,-151.0,0.00031616,7]
[338873659,1726972243940,-6775.0,0.00031666,120]
[338873660,1726972243951,-151.0,0.00031666,7]
[338873661,1726972243960,-151.0,0.00031666,7]
[338873663,1726972243971,-416.8471861,0.00031763,2]
[338873665,1726972243982,-1209.7018085,0.000318,3]
[338873667,1726972243990,-453.0,0.00031918,2]
[338873668,1726972244000,-300.0,0.00032,5]
[338873669,1726972244009,-300.0,0.00032,5]
[338873670,1726972244020,-150.0,0.00032,30]
[338873671,1726972244031,-2000.0,0.00032,120]
[338873672,1726972244042,-4000.0,0.00032,4]
[338873673,1726972244052,-500.0,0.00032,120]
[338873674,1726972244061,-251.335631,0.00032,30]
[338873675,1726972244073,-453.0,0.00032,2]
[338873676,1726972244082,-214.82,0.000323,14]
[338873677,1726972244091,-22842.2166137,0.00032318,4]
[338873678,1726972244101,-2853.47945002,0.00032318,4]
[338873679,1726972244111,-200.0,0.00032328,7]
[338873680,1726972244121,-200.0,0.00032328,7]
[338873681,1726972244129,-200.85136611,0.00032328,7]
[338873682,1726972244137,-515.458609,0.00032328,15]
[338873683,1726972244146,-643.86921593,0.00032328,15]
[338873684,1726972244156,-1000.0,0.00032328,15]
[338873685,1726972244166,-1000.0,0.00032328,15]
[338873686,1726972244175,-1000.0,0.00032328,15]
[338873687,1726972244184,-1000.0,0.00032328,15]
[338873688,1726972244194,-1000.0,0.00032328,15]
[338873689,1726972244204,-1000.0,0.00032328,15]
[338873690,1726972244214,-1000.0,0.00032328,15]
[338873691,1726972244223,-1000.0,0.00032328,15]
[338873692,1726972244234,-1000.0,0.00032328,15]
[338873693,1726972244243,-500.0,0.00032328,15]
[338873694,1726972244254,-500.0,0.00032328,15]
[338873695,1726972244262,-500.0,0.00032328,15]
[338873696,1726972244272,-500.0,0.00032328,15]
[338873697,1726972244282,-503.85,0.00032328,15]
[338873698,1726972244292,-500.0,0.00032328,2]
[338873699,1726972244301,-500.0,0.00032328,2]
[338873700,1726972244311,-377.18891494,0.00032328,2]
[338873701,1726972244320,-508.02371164,0.00032328,15]
[338873702,1726972244329,-500.0,0.00032328,15]
[338873703,1726972244340,-500.0,0.00032328,15]
[338873704,1726972244349,-505.69573157,0.00032328,15]
[338873705,1726972244359,-500.0,0.00032328,7]
[338873706,1726972244368,-500.0,0.00032328,2]
[338873707,1726972244377,-505.60790218,0.00032328,7]
[338873708,1726972244386,-500.0,0.00032328,2]
[338873709,1726972244395,-500.0,0.00032328,7]
[338873710,1726972244405,-500.0,0.00032328,7]
[338873711,1726972244414,-500.0,0.00032328,7]
[338873712,1726972244424,-512.30793709,0.00032328,7]
[338873713,1726972244433,-513.34779573,0.00032328,15]
[338873714,1726972244442,-500.0,0.00032328,15]
[338873715,1726972244451,-228.55849213,0.00032328,15]
[338873716,1726972244460,-501.52439688,0.00032328,15]
[338873717,1726972244469,-565.22171833,0.00032328,15]
[338873718,1726972244479,-508.72507036,0.00032328,15]
[338873719,1726972244488,-2603.03,0.00032328,15]
[338873720,1726972244498,-2603.03,0.00032328,15]
[338873721,1726972244507,-2603.03,0.00032328,15]
[338873722,1726972244516,-2603.03,0.00032328,15]
[338873723,1726972244525,-2603.03,0.00032328,15]
[338873724,1726972244534,-2603.03,0.00032328,15]
[338873725,1726972244543,-2603.03,0.00032328,15]
[338873726,1726972244552,-2603.03,0.00032328,15]
[338873727,1726972244562,-2603.03,0.00032328,15]
[338873728,1726972244571,-2603.03,0.00032328,15]
[338873729,1726972244581,-2603.03,0.00032328,15]
[338873730,1726972244591,-2603.03,0.00032328,15]
[338873731,1726972244600,-2603.03,0.00032328,15]
[338873732,1726972244609,-2603.03,0.00032328,15]
[338873733,1726972244618,-2603.03,0.00032328,15]
[338873734,1726972244627,-2603.03,0.00032328,15]
[338873735,1726972244637,-2603.03,0.00032328,15]
[338873736,1726972244646,-2603.03,0.00032328,15]
[338873737,1726972244655,-2603.03,0.00032328,15]
[338873738,1726972244664,-2603.03,0.00032328,15]
[338873739,1726972244673,-2603.03,0.00032328,15]
[338873740,1726972244682,-2603.03,0.00032328,15]
[338873741,1726972244691,-2603.03,0.00032328,15]
[338873742,1726972244700,-2603.22698897,0.00032328,15]
[338873743,1726972244709,-500.38172139,0.00032328,15]
[338873744,1726972244719,-219.80779924,0.00032328,15]
[338873745,1726972244728,-500.0,0.00032373,5]
[338873746,1726972244738,-5000.0,0.000325,25]
[338873747,1726972244747,-206.2489725,0.00032509,2]
[338873748,1726972244756,-1000.0,0.00032533,15]
[338873749,1726972244765,-151.0,0.00032533,7]
[338873750,1726972244775,-17220.39723987,0.00032533,21]
[338873751,1726972244784,-11421.1083069,0.00032586,4]
[338873752,1726972244794,-1426.73972501,0.00032586,4]
[338873753,1726972244803,-22842.2166137,0.00032599,4]
[338873754,1726972244813,-2853.47945002,0.00032599,4]
[338873755,1726972244822,-1000.0,0.00032602,15]
[338873756,1726972244831,-1000.0,0.00032602,15]
[338873757,1726972244842,-1000.0,0.00032602,15]
[338873758,1726972244851,-152.543067,0.00032606,7]
[338873759,1726972244860,-151.0,0.00032606,7]
[338873760,1726972244869,-151.0,0.00032606,7]
[338873761,1726972244879,-151.0,0.00032607,7]
[338873762,1726972244889,-151.0,0.00032607,7]
[338873763,1726972244898,-151.0,0.00032607,7]
[338873764,1726972244907,-151.0,0.00032607,7]
[338873765,1726972244917,-151.0,0.00032607,7]
[338873766,1726972244927,-151.0,0.00032607,7]
[338873767,1726972244937,-283.542492,0.00032607,7]
[338873768,1726972244946,-151.0,0.00032607,7]
[338873769,1726972244955,-583.56944353,0.00032608,2]
[338873770,1726972244965,-331.33317254,0.00032608,2]
[338873771,1726972244974,-500.0,0.00032608,2]
[338873772,1726972244983,-357.70077643,0.00032608,2]
[338873773,1726972244993,-500.0,0.00032608,2]
[338873774,1726972245003,-500.0,0.00032608,2]
[338873775,1726972245012,-243.73761053,0.00032608,2]
[338873776,1726972245022,-500.0,0.00032608,2]
[338873777,1726972245031,-500.0,0.00032608,2]
[338873778,1726972245041,-500.0,0.00032608,2]
[338873779,1726972245050,-500.0,0.00032608,2]
[338873780,1726972245058,-500.0,0.00032608,2]
[338873781,1726972245069,-175.93570101,0.00032608,2]
[338873782,1726972245080,-500.0,0.00032608,2]
[338873783,1726972245090,-500.0,0.00032608,2]
[338873784,1726972245100,-500.0,0.00032608,2]
[338873785,1726972245110,-500.0,0.00032608,2]
[338873786,1726972245119,-500.0,0.00032608,2]
[338873787,1726972245128,-500.0,0.00032608,2]
[338873788,1726972245138,-507.84994696,0.00032608,2]
[338873789,1726972245150,-500.0,0.00032608,2]
[338873790,1726972245160,-500.0,0.00032608,2]
[338873791,1726972245169,-151.0,0.00032609,7]
[338873792,1726972245178,-243.590622,0.00032609,7]
[338873793,1726972245187,-151.0,0.00032609,7]
[338873794,1726972245197,-151.0,0.00032609,7]
[338873795,1726972245206,-154.314086,0.00032609,7]
[338873796,1726972245215,-151.0,0.00032609,7]
[338873797,1726972245225,-151.0,0.00032609,7]
[338873798,1726972245236,-151.0,0.00032609,7]
[338873799,1726972245246,-151.0,0.00032609,7]
[338873800,1726972245255,-151.0,0.00032609,7]
[338873801,1726972245265,-151.0,0.00032609,7]
[338873802,1726972245274,-263.25182,0.00032609,7]
[338873803,1726972245284,-151.0,0.00032609,7]
[338873804,1726972245294,-151.0,0.00032609,7]
[338873805,1726972245304,-151.0,0.00032609,7]
[338873806,1726972245314,-151.0,0.00032609,7]
[338873807,1726972245324,-151.0,0.00032609,7]
[338873808,1726972245334,-151.0,0.00032609,7]
[338873809,1726972245344,-151.0,0.00032609,7]
[338873810,1726972245353,-151.0,0.00032609,7]
[338873811,1726972245362,-151.0,0.00032609,7]
[338873812,1726972245372,-151.0,0.00032609,7]
[338873813,1726972245381,-151.0,0.00032609,7]
[338873814,1726972245391,-190.251139,0.00032609,7]
[338873815,1726972245401,-151.0,0.00032609,7]
[338873816,1726972245410,-335.324563,0.00032609,7]
[338873817,1726972245419,-335.324563,0.00032609,7]
[338873818,1726972245429,-335.324563,0.00032609,7]
[338873819,1726972245438,-335.324563,0.00032609,7]
[338873820,1726972245448,-335.324563,0.00032609,7]
[338873821,1726972245458,-335.324563,0.00032609,7]
[338873822,1726972245467,-335.324563,0.00032609,7]
[338873823,1726972245477,-335.324563,0.00032609,7]
[338873824,1726972245486,-335.324563,0.00032609,7]
[338873825,1726972245495,-335.324563,0.00032609,7]
[338873826,1726972245504,-335.324563,0.00032609,7]
[338873827,1726972245514,-335.324563,0.00032609,7]
[338873828,1726972245523,-335.324563,0.00032609,7]
[338873829,1726972245533,-335.324563,0.00032609,7]
[338873830,1726972245544,-335.324563,0.00032609,7]
[338873831,1726972245553,-335.324563,0.00032609,7]
[338873832,1726972245563,-335.324563,0.00032609,7]
[338873833,1726972245572,-335.324563,0.00032609,7]
[338873834,1726972245582,-335.324563,0.00032609,7]
[338873835,1726972245593,-335.324571,0.00032609,7]
[338873836,1726972245602,-151.0,0.00032609,7]
[338873837,1726972245611,-151.0,0.00032609,7]
[338873838,1726972245620,-151.0,0.00032609,7]
[338873839,1726972245630,-151.0,0.00032609,7]
[338873840,1726972245639,-151.0,0.00032609,7]
[338873841,1726972245648,-151.0,0.00032609,7]
[338873842,1726972245657,-151.0,0.00032609,7]